fUSD/lending_fUSD_20250308
["ID","MTS","AMOUNT","RATE_DAILY","PERIOD"]
[355670455,1741450258375,-500.0,9.315e-05,2]
[355670456,1741450258386,-500.0,9.315e-05,2]
[355670457,1741450258398,-6133.09,9.315e-05,2]
[355670458,1741450258409,-2171.47,9.315e-05,2]
[355670459,1741450258419,-2984.49,9.315e-05,2]
[355670460,1741450258430,-500.0,9.315e-05,2]
[355670461,1741450258440,-1037.89,9.315e-05,2]
[355670462,1741450258450,-867.84,9.315e-05,2]
[355670463,1741450258460,-500.0,9.315e-05,2]
[355670464,1741450258471,-1863.08,9.315e-05,2]
[355670465,1741450258481,-659.99,9.315e-05,2]
[355670466,1741450258491,-1075.32,9.315e-05,2]
[355670467,1741450258502,-3089.68,9.315e-05,2]
[355670468,1741450258512,-2187.41,9.315e-05,2]
[355670469,1741450258523,-572.79,9.315e-05,2]
[355670470,1741450258533,-5995.75,9.315e-05,2]
[355670471,1741450258545,-752.18,9.315e-05,2]
[355670472,1741450258555,-1319.49,9.315e-05,2]
[355670473,1741450258566,-1011.66,9.315e-05,2]
[355670474,1741450258576,-1350.39,9.315e-05,2]
[355670475,1741450258590,-1382.87,9.315e-05,2]
[355670476,1741450258601,-6919.1,9.315e-05,2]
[355670477,1741450258611,-567.75,9.315e-05,2]
[355670478,1741450258621,-604.0,9.315e-05,2]
[355670479,1741450258631,-1687.87,9.315e-05,2]
[355670480,1741450258641,-1157.52,9.315e-05,2]
[355670481,1741450258652,-789.79,9.315e-05,2]
[355670482,1741450258672,-887.2,9.315e-05,2]
[355670483,1741450258684,-2152.71,9.315e-05,2]
[355670484,1741450258699,-2756.22,9.315e-05,2]
[355670485,1741450258709,-872.98,9.315e-05,2]
[355670486,1741450258719,-3325.61,9.315e-05,2]
[355670487,1741450258729,-1306.31,9.315e-05,2]
[355670488,1741450258739,-12011.57,9.315e-05,2]
[355670489,1741450258749,-2363.22,9.315e-05,2]
[355670490,1741450258759,-1257.23,9.315e-05,2]
[355670491,1741450258768,-1805.35,9.315e-05,2]
[355670492,1741450258779,-500.0,9.315e-05,2]
[355670493,1741450258788,-500.0,9.315e-05,2]
[355670494,1741450258799,-1413.01,9.315e-05,2]
[355670495,1741450258809,-2989.51,9.315e-05,2]
[355670496,1741450258819,-935.65,9.315e-05,2]
[355670497,1741450258914,-747.04,9.315e-05,2]
[355670498,1741450258925,-721.1,9.315e-05,2]
[355670499,1741450258935,-1813.66,9.315e-05,2]
[355670500,1741450258944,-500.0,9.315e-05,2]
[355670501,1741450258954,-11444.74,9.315e-05,2]
[355670502,1741450258964,-2830.5,9.315e-05,2]
[355670503,1741450258974,-1286.66,9.315e-05,2]
[355670504,1741450258984,-2528.21,9.315e-05,2]
[355670505,1741450258994,-1510.82,9.315e-05,2]
[355670506,1741450259004,-1264.6,9.315e-05,2]
[355670507,1741450259015,-500.0,9.315e-05,2]
[355670508,1741450259025,-689.64,9.315e-05,2]
[355670509,1741450259035,-2233.02,9.315e-05,2]
[355670510,1741450259044,-500.0,9.315e-05,2]
[355670511,1741450259055,-500.0,9.315e-05,2]
[355670512,1741450259065,-2773.87,9.315e-05,2]
[355670513,1741450259074,-1618.72,9.315e-05,2]
[355670514,1741450259084,-500.0,9.315e-05,2]
[355670515,1741450259095,-1021.66,9.315e-05,2]
[355670516,1741450259104,-620.61,9.315e-05,2]
[355670517,1741450259114,-3122.98,9.315e-05,2]
[355670518,1741450259124,-913.18,9.315e-05,2]
[355670519,1741450259134,-610.59,9.315e-05,2]
[355670520,1741450259144,-5945.69,9.315e-05,2]
[355670521,1741450259153,-500.0,9.315e-05,2]
[355670522,1741450259163,-500.0,9.315e-05,2]
[355670523,1741450259172,-860.34,9.315e-05,2]
[355670524,1741450259181,-942.29,9.315e-05,2]
[355670525,1741450259191,-4818.15,9.315e-05,2]
[355670526,1741450259201,-500.0,9.315e-05,2]
[355670527,1741450259211,-500.0,9.315e-05,2]
[355670528,1741450259220,-500.0,9.315e-05,2]
[355670529,1741450259229,-5476.0,9.315e-05,2]
[355670530,1741450259239,-723.51,9.315e-05,2]
[355670531,1741450259249,-1402.52,9.315e-05,2]
[355670532,1741450259259,-3055.95,9.315e-05,2]
[355670533,1741450259269,-500.0,9.315e-05,2]
[355670534,1741450259279,-3991.9,9.315e-05,2]
[355670535,1741450259295,-1339.53,9.315e-05,2]
[355670536,1741450259304,-27669.71,9.315e-05,2]
[355670537,1741450259315,-2276.46,9.315e-05,2]
[355670538,1741450259325,-921.69,9.315e-05,2]
[355670539,1741450259335,-779.56,9.315e-05,2]
[355670540,1741450259345,-500.0,9.315e-05,2]
[355670541,1741450259354,-1165.23,9.315e-05,2]
[355670542,1741450259365,-6567.26,9.315e-05,2]
[355670543,1741450259375,-500.0,9.315e-05,2]
[355670544,1741450259384,-2129.6,9.315e-05,2]
[355670545,1741450259394,-500.0,9.315e-05,2]
[355670546,1741450259404,-500.0,9.315e-05,2]
[355670547,1741450259414,-1661.91,9.315e-05,2]
[355670548,1741450259424,-169.66,9.347e-05,2]
[355670549,1741450259434,-152.038542,9.4e-05,2]
[355670550,1741450259444,-289732.49821058,9.4e-05,2]
[355670551,1741450259454,-58780.02750752,9.4e-05,2]
[355670552,1741450259464,-3456.85,9.462e-05,2]
[355670553,1741450259473,-18642.08,9.462e-05,2]
[355670554,1741450259482,-500.0,9.462e-05,2]
[355670555,1741450259492,-900.26,9.462e-05,2]
[355670556,1741450259502,-506.89,9.462e-05,2]
[355670557,1741450259512,-1590.98,9.462e-05,2]
[355670558,1741450259521,-3349.73,9.462e-05,2]
[355670559,1741450259530,-1213.55,9.462e-05,2]
[355670560,1741450259540,-4631.77,9.462e-05,2]
[355670561,1741450259550,-3584.31,9.462e-05,2]
[355670562,1741450259560,-2586.02,9.462e-05,2]
[355670563,1741450259570,-1313.25,9.462e-05,2]
[355670564,1741450259579,-500.0,9.462e-05,2]
[355670565,1741450259590,-3465.88,9.462e-05,2]
[355670566,1741450259599,-6170.14,9.462e-05,2]
[355670567,1741450259609,-2896.99,9.462e-05,2]
[355670568,1741450259619,-1727.877,9.507e-05,2]
[355670569,1741450259629,-150.0,9.562e-05,7]
[355670570,1741450259639,-166.032,9.562e-05,2]
[355670571,1741450259648,-500.0,9.589e-05,2]
[355670572,1741450259657,-500.0,9.589e-05,2]
[355670573,1741450259667,-500.0,9.589e-05,2]
[355670574,1741450259676,-500.0,9.589e-05,2]
[355670575,1741450259685,-500.0,9.589e-05,2]
[355670576,1741450259695,-302.49246106,9.589e-05,2]
[355670577,1741450259704,-500.0,9.589e-05,2]
[355670578,1741450259723,-500.0,9.589e-05,2]
[355670579,1741450259733,-500.0,9.589e-05,2]
[355670580,1741450259743,-500.0,9.589e-05,2]
[355670581,1741450259756,-623.78,9.589e-05,2]
[355670582,1741450259766,-500.0,9.589e-05,2]
[355670583,1741450259776,-735.61,9.589e-05,2]
[355670584,1741450259786,-500.0,9.589e-05,2]
[355670585,1741450259796,-500.0,9.589e-05,2]
[355670586,1741450259806,-500.0,9.589e-05,2]
[355670587,1741450259816,-500.0,9.589e-05,2]
[355670588,1741450259826,-500.0,9.589e-05,2]
[355670589,1741450259836,-500.0,9.589e-05,2]
[355670590,1741450259846,-500.0,9.589e-05,2]
[355670591,1741450259855,-500.0,9.589e-05,2]
[355670592,1741450259865,-500.0,9.589e-05,2]
[355670593,1741450259874,-536.09,9.589e-05,2]
[355670594,1741450259886,-500.0,9.589e-05,2]
[355670595,1741450259896,-500.0,9.589e-05,2]
[355670596,1741450259906,-500.0,9.589e-05,2]
[355670597,1741450259916,-500.0,9.589e-05,2]
[355670598,1741450259925,-500.0,9.589e-05,2]
[355670599,1741450259935,-500.0,9.589e-05,2]
[355670600,1741450259945,-500.0,9.589e-05,2]
[355670601,1741450259955,-500.0,9.589e-05,2]
[355670602,1741450259964,-500.0,9.589e-05,2]
[355670603,1741450259974,-500.0,9.589e-05,2]
[355670604,1741450259985,-500.0,9.589e-05,2]
[355670605,1741450259995,-500.0,9.589e-05,2]
[355670606,1741450260005,-500.0,9.589e-05,2]
[355670607,1741450260015,-611.2,9.589e-05,2]
[355670608,1741450260024,-500.0,9.589e-05,2]
[355670609,1741450260034,-500.0,9.589e-05,2]
[355670610,1741450260045,-500.0,9.589e-05,2]
[355670611,1741450260056,-500.0,9.589e-05,2]
[355670612,1741450260067,-500.0,9.589e-05,2]
[355670613,1741450260077,-598.25,9.589e-05,2]
[355670614,1741450260087,-500.0,9.589e-05,2]
[355670615,1741450260097,-801.86,9.589e-05,2]
[355670616,1741450260107,-500.0,9.589e-05,2]
[355670617,1741450260117,-500.0,9.589e-05,2]
[355670618,1741450260127,-563.45,9.589e-05,2]
[355670619,1741450260138,-500.0,9.589e-05,2]
[355670620,1741450260149,-631.96,9.589e-05,2]
[355670621,1741450260159,-500.0,9.589e-05,2]
[355670622,1741450260169,-786.33,9.589e-05,2]
[355670623,1741450260180,-500.0,9.589e-05,2]
[355670624,1741450260190,-585.65,9.589e-05,2]
[355670625,1741450260200,-500.0,9.589e-05,2]
[355670626,1741450260210,-559.71,9.589e-05,2]
[355670627,1741450260220,-500.0,9.589e-05,2]
[355670628,1741450260230,-500.0,9.589e-05,2]
[355670629,1741450260240,-213.56290144,9.589e-05,2]
[355670630,1741450260250,-500.0,9.589e-05,2]
[355670631,1741450260260,-570.31,9.589e-05,2]
[355670632,1741450260270,-500.0,9.589e-05,2]
[355670633,1741450260282,-500.0,9.589e-05,2]
[355670634,1741450260294,-500.0,9.589e-05,2]
[355670635,1741450260303,-674.8,9.589e-05,2]
[355670636,1741450260314,-500.0,9.589e-05,2]
[355670637,1741450260325,-500.0,9.589e-05,2]
[355670638,1741450260335,-500.0,9.589e-05,2]
[355670639,1741450260345,-875.54,9.589e-05,2]
[355670640,1741450260354,-500.0,9.589e-05,2]
[355670641,1741450260365,-697.96,9.589e-05,2]
[355670642,1741450260375,-500.0,9.589e-05,2]
[355670643,1741450260385,-500.0,9.589e-05,2]
[355670644,1741450260395,-500.0,9.589e-05,2]
[355670645,1741450260405,-500.0,9.589e-05,2]
[355670646,1741450260415,-500.0,9.589e-05,2]
[355670647,1741450260425,-828.33,9.589e-05,2]
[355670648,1741450260435,-500.0,9.589e-05,2]
[355670649,1741450260444,-500.0,9.589e-05,2]
[355670650,1741450260454,-554.2,9.589e-05,2]
[355670651,1741450260463,-500.0,9.589e-05,2]
[355670652,1741450260473,-500.0,9.589e-05,2]
[355670653,1741450260483,-500.0,9.589e-05,2]
[355670654,1741450260492,-500.0,9.589e-05,2]
[355670655,1741450260502,-511.03,9.589e-05,2]
[355670656,1741450260511,-500.0,9.589e-05,2]
[355670657,1741450260521,-602.41,9.589e-05,2]
[355670658,1741450260533,-500.0,9.589e-05,2]
[355670659,1741450260542,-500.0,9.589e-05,2]
[355670660,1741450260552,-388.48864341,9.589e-05,2]
[355670661,1741450260562,-500.0,9.589e-05,2]
[355670662,1741450260573,-500.0,9.589e-05,2]
[355670663,1741450260583,-567.16,9.589e-05,2]
[355670664,1741450260593,-500.0,9.589e-05,2]
[355670665,1741450260603,-500.0,9.589e-05,2]
[355670666,1741450260613,-500.0,9.589e-05,2]
[355670667,1741450260623,-500.0,9.589e-05,2]
[355670668,1741450260633,-500.0,9.589e-05,2]
[355670669,1741450260643,-716.52,9.589e-05,2]
[355670670,1741450260653,-516.17,9.589e-05,2]
[355670671,1741450260663,-555.84,9.589e-05,2]
[355670672,1741450260673,-654.94,9.589e-05,2]
[355670673,1741450260684,-500.0,9.589e-05,2]
[355670674,1741450260694,-611.173404,9.589e-05,2]
[355670675,1741450260705,-842.65,9.589e-05,2]
[355670676,1741450260716,-500.0,9.589e-05,2]
[355670677,1741450260726,-774.84,9.589e-05,2]
[355670678,1741450260736,-962.59,9.589e-05,2]
[355670679,1741450260747,-500.0,9.589e-05,2]
[355670680,1741450260757,-500.0,9.589e-05,2]
[355670681,1741450260767,-500.0,9.589e-05,2]
[355670682,1741450260777,-500.0,9.589e-05,2]
[355670683,1741450260787,-500.0,9.589e-05,2]
[355670684,1741450260797,-500.0,9.589e-05,2]
[355670685,1741450260808,-500.0,9.589e-05,2]
[355670686,1741450260818,-709.03,9.589e-05,2]
[355670687,1741450260828,-500.0,9.589e-05,2]
[355670688,1741450260838,-393.282689,9.589e-05,2]
[355670689,1741450260848,-1001.97,9.589e-05,2]
[355670690,1741450260858,-500.0,9.589e-05,2]
[355670691,1741450260869,-500.0,9.589e-05,2]
[355670692,1741450260879,-500.0,9.589e-05,2]
[355670693,1741450260889,-864.87,9.589e-05,2]
[355670694,1741450260899,-834.37,9.589e-05,2]
[355670695,1741450260910,-500.0,9.589e-05,2]
[355670696,1741450260920,-500.0,9.589e-05,2]
[355670697,1741450260930,-534.8,9.589e-05,2]
[355670698,1741450260941,-1049.79,9.589e-05,2]
[355670699,1741450260951,-860.21,9.589e-05,2]
[355670700,1741450260961,-976.28,9.589e-05,2]
[355670701,1741450260971,-500.0,9.589e-05,2]
[355670702,1741450260982,-859.81,9.589e-05,2]
[355670703,1741450260992,-500.0,9.589e-05,2]
[355670704,1741450261003,-500.0,9.589e-05,2]
[355670705,1741450261014,-573.05,9.589e-05,2]
[355670706,1741450261024,-1000.46,9.589e-05,2]
[355670707,1741450261035,-500.0,9.589e-05,2]
[355670708,1741450261046,-1201.81,9.589e-05,2]
[355670709,1741450261057,-500.0,9.589e-05,2]
[355670710,1741450261075,-608.51,9.589e-05,2]
[355670711,1741450261086,-1223.76,9.589e-05,2]
[355670712,1741450261097,-972.3,9.589e-05,2]
[355670713,1741450261107,-500.0,9.589e-05,2]
[355670714,1741450261118,-500.0,9.589e-05,2]
[355670715,1741450261129,-500.0,9.589e-05,2]
[355670716,1741450261140,-500.0,9.589e-05,2]
[355670717,1741450261150,-923.34,9.589e-05,2]
[355670718,1741450261161,-676.23,9.589e-05,2]
[355670719,1741450261171,-528.52,9.589e-05,2]
[355670720,1741450261181,-500.0,9.589e-05,2]
[355670721,1741450261192,-564.81,9.589e-05,2]
[355670722,1741450261202,-516.47,9.589e-05,2]
[355670723,1741450261213,-1192.68,9.589e-05,2]
[355670724,1741450261223,-628.26,9.589e-05,2]
[355670725,1741450261234,-500.0,9.589e-05,2]
[355670726,1741450261244,-764.96,9.589e-05,2]
[355670727,1741450261255,-1006.07,9.589e-05,2]
[355670728,1741450261265,-500.0,9.589e-05,2]
[355670729,1741450261275,-565.59,9.589e-05,2]
[355670730,1741450261289,-500.0,9.589e-05,2]
[355670731,1741450261299,-500.0,9.589e-05,2]
[355670732,1741450261312,-500.0,9.589e-05,2]
[355670733,1741450261323,-515.54,9.589e-05,2]
[355670734,1741450261333,-594.03,9.589e-05,2]
[355670735,1741450261343,-500.0,9.589e-05,2]
[355670736,1741450261354,-930.15,9.589e-05,2]
[355670737,1741450261367,-500.0,9.589e-05,2]
[355670738,1741450261377,-633.41,9.589e-05,2]
[355670739,1741450261387,-500.0,9.589e-05,2]
[355670740,1741450261396,-1209.92,9.589e-05,2]
[355670741,1741450261406,-773.96,9.589e-05,2]
[355670742,1741450261415,-500.0,9.589e-05,2]
[355670743,1741450261424,-2083.12,9.589e-05,2]
[355670744,1741450261435,-864.36,9.589e-05,2]
[355670745,1741450261447,-4992.7,9.589e-05,2]
[355670746,1741450261457,-594.4,9.589e-05,2]
[355670747,1741450261467,-627.02,9.589e-05,2]
[355670748,1741450261477,-851.99,9.589e-05,2]
[355670749,1741450261488,-1442.37,9.589e-05,2]
[355670750,1741450261498,-1003.48,9.589e-05,2]
[355670751,1741450261508,-5042.13,9.589e-05,2]
[355670752,1741450261519,-2121.73,9.589e-05,2]
[355670753,1741450261529,-500.0,9.589e-05,2]
[355670754,1741450261540,-879.88,9.589e-05,2]
[355670755,1741450261550,-4139.0,9.589e-05,2]
[355670756,1741450261560,-2225.22,9.589e-05,2]
[355670757,1741450261571,-2387.01,9.589e-05,2]
[355670758,1741450261582,-1387.09,9.589e-05,2]
[355670759,1741450261592,-500.0,9.589e-05,2]
[355670760,1741450261602,-500.0,9.589e-05,2]
[355670761,1741450261612,-500.0,9.589e-05,2]
[355670762,1741450261623,-1041.41,9.589e-05,2]
[355670763,1741450261633,-2411.52,9.589e-05,2]
[355670764,1741450261644,-644.99,9.589e-05,2]
[355670765,1741450261655,-500.0,9.589e-05,2]
[355670766,1741450261665,-500.0,9.589e-05,2]
[355670767,1741450261676,-1755.99,9.589e-05,2]
[355670768,1741450261687,-1615.13,9.589e-05,2]
[355670769,1741450261699,-1370.66,9.589e-05,2]
[355670770,1741450261710,-500.0,9.589e-05,2]
[355670771,1741450261721,-1657.53,9.589e-05,2]
[355670772,1741450261732,-500.0,9.589e-05,2]
[355670773,1741450261742,-500.0,9.589e-05,2]
[355670774,1741450261753,-1898.02,9.589e-05,2]
[355670775,1741450261763,-786.54,9.589e-05,2]
[355670776,1741450261774,-631.73,9.589e-05,2]
[355670777,1741450261784,-503.04,9.589e-05,2]
[355670778,1741450261794,-2515.6,9.589e-05,2]
[355670779,1741450261804,-500.0,9.589e-05,2]
[355670780,1741450261816,-1347.38,9.589e-05,2]
[355670781,1741450261826,-778.74,9.589e-05,2]
[355670782,1741450261837,-1222.18,9.589e-05,2]
[355670783,1741450261848,-1595.58,9.589e-05,2]
[355670784,1741450261858,-1606.44,9.589e-05,2]
[355670785,1741450261868,-2769.7,9.589e-05,2]
[355670786,1741450261879,-500.0,9.589e-05,2]
[355670787,1741450261889,-785.85,9.589e-05,2]
[355670788,1741450261900,-500.0,9.589e-05,2]
[355670789,1741450261911,-500.0,9.589e-05,2]
[355670790,1741450261922,-1497.11,9.589e-05,2]
[355670791,1741450261932,-1166.49,9.589e-05,2]
[355670792,1741450261943,-2219.69,9.589e-05,2]
[355670793,1741450261954,-2049.23,9.589e-05,2]
[355670794,1741450261964,-1357.3,9.589e-05,2]
[355670795,1741450261974,-500.0,9.589e-05,2]
[355670796,1741450261985,-500.0,9.589e-05,2]
[355670797,1741450261995,-500.0,9.589e-05,2]
[355670798,1741450262006,-6133.09,9.589e-05,2]
[355670799,1741450262017,-2171.47,9.589e-05,2]
[355670800,1741450262028,-2984.49,9.589e-05,2]
[355670801,1741450262039,-500.0,9.589e-05,2]
[355670802,1741450262050,-1037.89,9.589e-05,2]
[355670803,1741450262061,-867.84,9.589e-05,2]
[355670804,1741450262071,-500.0,9.589e-05,2]
[355670805,1741450262081,-1863.08,9.589e-05,2]
[355670806,1741450262091,-659.99,9.589e-05,2]
[355670807,1741450262102,-1075.32,9.589e-05,2]
[355670808,1741450262112,-3089.68,9.589e-05,2]
[355670809,1741450262123,-2187.41,9.589e-05,2]
[355670810,1741450262133,-572.79,9.589e-05,2]
[355670811,1741450262143,-5995.75,9.589e-05,2]
[355670812,1741450262153,-752.18,9.589e-05,2]
[355670813,1741450262164,-1319.49,9.589e-05,2]
[355670814,1741450262174,-1011.66,9.589e-05,2]
[355670815,1741450262185,-1350.39,9.589e-05,2]
[355670816,1741450262195,-1382.87,9.589e-05,2]
[355670817,1741450262205,-6919.1,9.589e-05,2]
[355670818,1741450262214,-567.75,9.589e-05,2]
[355670819,1741450262225,-604.0,9.589e-05,2]
[355670820,1741450262235,-1687.87,9.589e-05,2]
[355670821,1741450262246,-1157.52,9.589e-05,2]
[355670822,1741450262257,-789.79,9.589e-05,2]
[355670823,1741450262267,-887.2,9.589e-05,2]
[355670824,1741450262278,-2152.71,9.589e-05,2]
[355670825,1741450262292,-2756.22,9.589e-05,2]
[355670826,1741450262303,-872.98,9.589e-05,2]
[355670827,1741450262316,-3325.61,9.589e-05,2]
[355670828,1741450262327,-1306.31,9.589e-05,2]
[355670829,1741450262338,-12011.57,9.589e-05,2]
[355670830,1741450262349,-2363.22,9.589e-05,2]
[355670831,1741450262361,-1257.23,9.589e-05,2]
[355670832,1741450262372,-1805.35,9.589e-05,2]
[355670833,1741450262382,-500.0,9.589e-05,2]
[355670834,1741450262394,-500.0,9.589e-05,2]
[355670835,1741450262404,-1413.01,9.589e-05,2]
[355670836,1741450262415,-2989.51,9.589e-05,2]
[355670837,1741450262425,-935.65,9.589e-05,2]
[355670838,1741450262435,-747.04,9.589e-05,2]
[355670839,1741450262446,-721.1,9.589e-05,2]
[355670840,1741450262456,-1813.66,9.589e-05,2]
[355670841,1741450262467,-500.0,9.589e-05,2]
[355670842,1741450262478,-11444.74,9.589e-05,2]
[355670843,1741450262489,-2830.5,9.589e-05,2]
[355670844,1741450262499,-1286.66,9.589e-05,2]
[355670845,1741450262511,-2528.21,9.589e-05,2]
[355670846,1741450262521,-1510.82,9.589e-05,2]
[355670847,1741450262532,-1264.6,9.589e-05,2]
[355670848,1741450262543,-500.0,9.589e-05,2]
[355670849,1741450262553,-689.64,9.589e-05,2]
[355670850,1741450262566,-2233.02,9.589e-05,2]
[355670851,1741450262576,-500.0,9.589e-05,2]
[355670852,1741450262586,-500.0,9.589e-05,2]
[355670853,1741450262600,-2773.87,9.589e-05,2]
[355670854,1741450262611,-1618.72,9.589e-05,2]
[355670855,1741450262622,-500.0,9.589e-05,2]
[355670856,1741450262632,-1021.66,9.589e-05,2]
[355670857,1741450262642,-620.61,9.589e-05,2]
[355670858,1741450262653,-3122.98,9.589e-05,2]
[355670859,1741450262663,-913.18,9.589e-05,2]
[355670860,1741450262673,-610.59,9.589e-05,2]
[355670861,1741450262683,-5945.69,9.589e-05,2]
[355670862,1741450262693,-500.0,9.589e-05,2]
[355670863,1741450262703,-600.07776527,9.589e-05,2]
[355670864,1741450262714,-860.34,9.589e-05,2]
[355670865,1741450262724,-942.29,9.589e-05,2]
[355670866,1741450262734,-4818.15,9.589e-05,2]
[355670867,1741450262745,-336.62937417,9.589e-05,2]
[355670868,1741450262755,-500.0,9.589e-05,2]
[355670869,1741450262766,-500.0,9.589e-05,2]
[355670870,1741450262777,-5476.0,9.589e-05,2]
[355670871,1741450262787,-723.51,9.589e-05,2]
[355670872,1741450262798,-1402.52,9.589e-05,2]
[355670873,1741450262811,-3055.95,9.589e-05,2]
[355670874,1741450262822,-500.0,9.589e-05,2]
[355670875,1741450262832,-947.51466595,9.589e-05,2]
[355670876,1741450263381,-3044.38533405,9.589e-05,2]
[355670877,1741450263391,-1339.53,9.589e-05,2]
[355670878,1741450263400,-27669.71,9.589e-05,2]
[355670879,1741450263410,-2276.46,9.589e-05,2]
[355670880,1741450263420,-921.69,9.589e-05,2]
[355670881,1741450263430,-779.56,9.589e-05,2]
[355670882,1741450263440,-500.0,9.589e-05,2]
[355670883,1741450263450,-1165.23,9.589e-05,2]
[355670884,1741450263460,-3328.68977075,9.589e-05,2]
[355670885,1741450263487,-493.97401655,9.589e-05,2]
[355670886,1741450264012,-500.0,8.219e-05,2]
[355670887,1741450264022,-9.50571749,8.219e-05,2]
[355670888,1741450264047,-490.49428251,8.219e-05,2]
[355670889,1741450264058,-500.0,8.493e-05,2]
[355670890,1741450264068,-500.0,8.493e-05,2]
[355670891,1741450264078,-53.38626384,8.767e-05,2]
[355670892,1741450266365,-446.61373616,8.767e-05,2]
[355670893,1741450266374,-500.0,8.767e-05,2]
[355670894,1741450266384,-500.0,9.041e-05,2]
[355670895,1741450266393,-704.31991907,9.084e-05,2]
[355670896,1741450266404,-500.0,9.315e-05,2]
[355670897,1741450266414,-2744.5962127,9.589e-05,2]
[355670898,1741450266424,-500.0,9.589e-05,2]
[355670899,1741450266434,-2129.6,9.589e-05,2]
[355670900,1741450266443,-500.0,9.589e-05,2]
[355670901,1741450266453,-500.0,9.589e-05,2]
[355670902,1741450266462,-1661.91,9.589e-05,2]
[355670903,1741450266472,-218.79551569,9.589e-05,2]
[355670904,1741450266619,-281.20448431,9.589e-05,2]
[355670905,1741450266628,-45.00351569,9.736e-05,2]
[355670906,1741450266643,-454.99648431,9.736e-05,2]
[355670907,1741450266652,-900.26,9.736e-05,2]
[355670908,1741450266662,-506.89,9.736e-05,2]
[355670909,1741450266671,-1590.98,9.736e-05,2]
[355670910,1741450266682,-3349.73,9.736e-05,2]
[355670911,1741450266691,-1213.55,9.736e-05,2]
[355670912,1741450266701,-4631.77,9.736e-05,2]
[355670913,1741450266710,-3584.31,9.736e-05,2]
[355670914,1741450266720,-2586.02,9.736e-05,2]
[355670915,1741450266730,-1313.25,9.736e-05,2]
[355670916,1741450266739,-500.0,9.736e-05,2]
[355670917,1741450266749,-2227.85151337,9.736e-05,2]
[355670918,1741450266760,-1238.02848663,9.736e-05,2]
[355670919,1741450266770,-6170.14,9.736e-05,2]
[355670920,1741450266779,-2896.99,9.736e-05,2]
[355670921,1741450266789,-231.23,9.819e-05,2]
[355670922,1741450266799,-34591.99480315,9.84e-05,2]
[355670923,1741450842189,300.62,7.92e-05,2]
[355670924,1741450927787,162.64,7.808e-05,2]
[355670946,1741451238629,500.0,8e-05,2]
[355670976,1741451394817,-937.82461428,8.492e-05,3]
[355671026,1741451432329,-372.82893325,8.209e-05,2]
[355671029,1741451432340,-150.0,8.211e-05,2]
[355671032,1741451432350,-150.0,8.216e-05,2]
[355671035,1741451432360,-300.0,8.218e-05,2]
[355671038,1741451432370,-150.0,8.218e-05,2]
[355671041,1741451432380,-500.0,8.219e-05,2]
[355671043,1741451432390,-500.0,8.219e-05,2]
[355671044,1741451432399,-122.07131849,8.219e-05,2]
[355671045,1741451432412,-377.92868151,8.219e-05,2]
[355671046,1741451432422,-390.88682369,8.219e-05,2]
[355671048,1741451432452,-109.11317631,8.219e-05,2]
[355671049,1741451432462,-244.54605539,8.219e-05,2]
[355671050,1741451432474,-255.45394461,8.219e-05,2]
[355671051,1741451432484,-500.0,8.219e-05,2]
[355671052,1741451432494,-500.0,8.219e-05,2]
[355671053,1741451432504,-242.92462408,8.219e-05,2]
[355671054,1741451432553,-257.07537592,8.219e-05,2]
[355671055,1741451432564,-163.28937998,8.219e-05,2]
[355671056,1741451432574,-500.0,8.219e-05,2]
[355671057,1741451432584,-500.0,8.219e-05,2]
[355671058,1741451432593,-500.0,8.219e-05,2]
[355671059,1741451432602,-500.0,8.219e-05,2]
[355671060,1741451432615,-500.0,8.219e-05,2]
[355671061,1741451432624,-449.9342441,8.219e-05,2]
[355671062,1741451432636,-50.0657559,8.219e-05,2]
[355671063,1741451432646,-500.0,8.219e-05,2]
[355671064,1741451432656,-500.0,8.219e-05,2]
[355671065,1741451432670,-500.0,8.219e-05,2]